bitfinex-derivatives/quotes_SOLF0:USTF0_20250923
["timestamp","ask_amount","ask_price","bid_price","bid_amount"]
[1758648961551,7.2,217.52,217.45,7.27]
[1758648961753,7.2,217.59,217.47,7.27]
[1758648961966,3.13310915,217.58,217.47,71.6081]
[1758648962153,3.13310915,217.57,217.47,7.27]
[1758648962355,3.13310915,217.56,217.47,71.6072]
[1758648962554,8.00030356,217.59,217.51,4.1352]
[1758648962758,347.74,217.63,217.5,71.5989]
[1758648962953,347.74,217.63,217.51,7.27]
[1758648963152,0.80018395,217.62,217.51,7.27]
[1758648963553,7.2,217.56,217.43,11.4068]
[1758648963854,5.09020374,217.59,217.47,64.3385]
[1758648963855,118.98,217.59,217.47,64.3385]
[1758648964052,71.5077,217.58,217.43,7.27]
[1758648964247,71.5125,217.56,217.43,7.27]
[1758648964751,7.2,217.52,217.36,7.27]
[1758648964956,119.8,217.51,217.36,7.27]
[1758648965352,64.3427,217.46,217.31,7.27]
[1758648965656,7.2,217.45,217.3,20.44100476]
[1758648965957,7.2,217.45,217.34,64.377]
[1758648966462,7.2,217.5,217.36,7.27]
[1758648966757,4.1361,217.47,217.36,11.4079]
[1758648966959,7.2,217.47,217.3,20.44100476]
[1758648967757,7.2,217.47,217.32,64.3827]
[1758648968161,7.2,217.47,217.35,4.1382]
[1758648969158,7.2,217.47,217.35,7.27]
[1758648969359,71.5409,217.47,217.3,84.82930476]
[1758648969551,64.3419,217.46,217.3,20.44100476]
[1758648969755,7.2,217.43,217.3,20.44100476]
[1758648970049,127.04,217.43,217.3,20.44100476]
[1758648970453,4.1377,217.39,217.3,24.58020476]
[1758648970653,4.1377,217.39,217.3,20.44100476]
[1758648971861,4.1379,217.37,217.3,20.44100476]
[1758648972051,7.37,217.39,217.3,20.44100476]
[1758648972254,7.37,217.39,217.3,24.58010476]
[1758648972553,7.37,217.39,217.3,20.44100476]
[1758648972750,7.37,217.44,217.34,4.1385]
[1758648972949,7.37,217.44,217.34,11.2785]
[1758648973557,7.37,217.44,217.34,7.14]
[1758648973757,7.37,217.44,217.36,4.1381]
[1758648974052,64.354,217.42,217.3,13.17100476]
[1758648974257,7.37,217.38,217.3,13.17100476]
[1758648974755,127.37,217.38,217.3,13.17100476]
[1758648975262,64.3691,217.37,217.3,13.17100476]
[1758648975451,127.37,217.38,217.3,13.17100476]
[1758648975452,7.37,217.35,217.3,13.17100476]
[1758648975857,7.37,217.31,217.3,13.17100476]
[1758648977257,11.5091,217.31,217.3,13.17100476]
[1758648977562,7.37,217.31,217.3,13.17100476]
[1758648977961,127.37,217.38,217.3,13.17100476]
[1758648978560,131.5079,217.38,217.3,13.17100476]
[1758648979068,127.37,217.38,217.3,13.17100476]
[1758648979357,71.7389,217.37,217.3,13.17100476]
[1758648979558,64.3714,217.36,217.3,13.17100476]
[1758648979758,7.37,217.34,217.3,13.17100476]
[1758648979961,4.1391,217.32,217.3,13.17100476]
[1758648980562,7.37,217.33,217.3,13.17100476]
[1758648981163,4.1389,217.32,217.3,13.17100476]
[1758648981764,11.5089,217.32,217.3,13.17100476]
[1758648982157,4.1389,217.32,217.3,13.17100476]
[1758648982354,11.5089,217.32,217.3,13.17100476]
[1758648982559,7.37,217.31,217.3,13.17100476]
[1758648983467,7.37,217.31,217.3,5.13197265]
[1758648983965,120.06,217.32,217.3,5.13197265]
[1758648984858,7.38,217.36,217.3,5.13197265]
[1758648985060,4.1377,217.38,217.3,5.13197265]
[1758648985256,120.04,217.39,217.3,5.13197265]
[1758648985470,120.04,217.39,217.31,7.21]
[1758648985864,120.04,217.39,217.31,71.5955]
[1758648986164,120.04,217.45,217.34,7.21]
[1758648986762,64.3489,217.44,217.31,4.139]
[1758648987058,7.38,217.43,217.31,4.139]
[1758648987859,7.38,217.43,217.3,5.13197265]
[1758648988063,7.38,217.43,217.31,7.21]
[1758648988465,11.517,217.43,217.33,4.1385]
[1758648989360,7.38,217.43,217.31,11.349]
[1758648989559,7.38,217.43,217.31,7.21]
[1758648990156,64.3567,217.41,217.3,5.13197265]
[1758648990762,64.3715,217.36,217.3,5.13197265]
[1758648990965,7.38,217.34,217.3,5.13197265]
[1758648991262,7.38,217.31,217.3,5.13197265]
[1758648991868,4.139,217.32,217.3,5.13197265]
[1758648992861,4.1385,217.34,217.3,5.13197265]
[1758648993072,3.16182259,217.33,217.3,5.13197265]
[1758648993260,7.38,217.34,217.3,5.13197265]
[1758648993564,7.29984221,217.33,217.3,5.13197265]
[1758648993870,119.78,217.35,217.3,5.13197265]
[1758648994470,7.38,217.43,217.3,5.13197265]
[1758648994766,7.38,217.41,217.3,5.13197265]
[1758648994971,4.1381,217.37,217.3,5.13197265]
[1758648995164,119.82,217.36,217.3,5.13197265]
[1758648995864,7.38,217.34,217.3,5.13197265]
[1758648996063,10.53976906,217.33,217.3,5.13197265]
[1758648996259,7.38,217.31,217.3,5.13197265]
[1758648996662,130.37866803,217.31,217.3,7.265e-05]
[1758648997869,122.99866803,217.31,217.3,7.265e-05]
[1758648998263,119.84,217.31,217.3,7.265e-05]
[1758648998464,130.83562792,217.31,217.16,7.21]
[1758648998668,3.15562792,217.3,217.17,7.21]
[1758648998860,127.22,217.31,217.17,7.21]
[1758648999064,4.1392,217.3,217.21,4.141]
[1758648999474,119.86,217.33,217.21,7.21]
[1758649000372,127.24,217.33,217.21,7.21]
[1758649000669,3.15527524,217.32,217.21,7.21]
[1758649000975,4.1395,217.29,217.21,7.21]
[1758649003169,7.38,217.31,217.16,7.21]
[1758649003373,3.15114664,217.3,217.16,7.21]
[1758649003574,7.38,217.31,217.16,7.21]
[1758649003872,3.15115431,217.3,217.16,7.21]
[1758649004174,7.38,217.31,217.16,7.21]
[1758649004474,3.15097841,217.3,217.16,7.21]
[1758649004674,7.38,217.31,217.16,7.21]
[1758649004877,7.29033118,217.3,217.2,4.1411]
[1758649005068,7.38,217.31,217.21,7.21]
[1758649005469,3.15101196,217.3,217.21,7.21]
[1758649005668,3.1510225,217.29,217.21,7.21]
[1758649005971,7.38,217.31,217.21,7.21]
[1758649006178,11.52,217.27,217.16,11.3519]
[1758649006375,7.38,217.27,217.16,11.3519]
[1758649006778,4.1402,217.25,217.16,7.21]
[1758649006977,119.46,217.26,217.16,7.21]
[1758649007375,3.15372939,217.25,217.16,7.21]
[1758649007575,119.46,217.26,217.16,7.21]
[1758649007776,4.1406,217.23,217.16,7.21]
[1758649007979,183.8618,217.26,217.16,7.21]
[1758649008279,10.5332709,217.25,217.12,4.1427]
[1758649008475,3.1532709,217.24,217.13,4.1423]
[1758649009275,3.1532709,217.24,217.11,11.3528]
[1758649009475,67.5614709,217.24,217.11,11.3528]
[1758649009673,3.1532709,217.23,217.11,11.3528]
[1758649009873,7.2941709,217.22,217.11,7.21]
[1758649010074,4.1409,217.22,217.11,7.21]
[1758649010279,3.15530172,217.21,217.11,7.21]
[1758649010581,4.1409,217.22,217.11,7.21]
[1758649010781,3.15543827,217.21,217.11,7.21]
[1758649010983,7.38,217.25,217.13,7.21]
[1758649011177,3.15559454,217.24,217.13,7.21]
[1758649011378,7.38,217.25,217.13,7.21]
[1758649011379,3.15559454,217.23,217.13,7.21]
[1758649011680,3.15559454,217.22,217.14,64.4363]
[1758649011879,7.38,217.25,217.15,7.21]
[1758649012080,3.15680823,217.24,217.15,7.21]
[1758649012282,7.38,217.25,217.16,7.21]
[1758649012472,7.38,217.3,217.19,7.21]
[1758649012677,3.15698414,217.29,217.19,7.21]
[1758649012985,3.15698414,217.28,217.19,7.21]
[1758649013279,3.15698414,217.27,217.24,4.1404]
[1758649013486,119.2,217.32,217.25,7.64]
[1758649013683,3.15881485,217.31,217.25,7.64]
[1758649013986,3.15881485,217.3,217.25,7.64]
[1758649014177,3.15881485,217.29,217.25,7.64]
[1758649014378,119.2,217.32,217.24,11.8539297]
[1758649014588,119.81573208,217.38,217.3,7.64]
[1758649014784,3.16158308,217.37,217.3,7.64]
[1758649014983,3.16158308,217.36,217.3,7.64]
[1758649015187,3.16158308,217.35,217.32,7.64]
[1758649015377,3.16158308,217.35,217.31,4.1389]
[1758649015378,3.16158308,217.34,217.31,7.64]
[1758649015581,5.09020374,217.44,217.32,7.64]
[1758649015784,3.16370214,217.43,217.32,7.64]
[1758649015979,3.16370214,217.42,217.32,7.64]
[1758649016184,3.16370214,217.41,217.35,11.7782]
[1758649016384,3.16370214,217.4,217.36,7.64]
[1758649016693,3.16370214,217.39,217.36,7.64]
[1758649016990,364.70660374,217.46,217.36,7.64]
[1758649017180,3.16328356,217.45,217.36,7.64]
[1758649017390,3.16328356,217.44,217.36,7.64]
[1758649017588,3.16328356,217.43,217.36,7.64]
[1758649017782,3.16328356,217.42,217.36,7.64]
[1758649017983,3.16328356,217.41,217.34,7.64]
[1758649018194,3.16328356,217.4,217.29,11.8539297]
[1758649018487,3.16328356,217.39,217.29,7.64]
[1758649018794,7.44,217.37,217.24,11.8539297]
[1758649018994,7.44,217.37,217.24,7.64]
[1758649018995,122.48328356,217.36,217.24,7.64]
[1758649019187,3.16328356,217.35,217.24,7.64]
[1758649019390,3.16328356,217.34,217.24,7.64]
[1758649019585,3.16328356,217.33,217.24,7.64]
[1758649019890,3.16328356,217.32,217.24,7.64]
[1758649020084,3.16328356,217.31,217.24,7.64]
[1758649020292,3.16328356,217.3,217.24,7.64]
[1758649020493,123.4583,217.36,217.22,7.64]
[1758649020792,3.1608637,217.35,217.22,7.64]
[1758649020989,7.44,217.33,217.22,7.64]
[1758649021181,3.1608637,217.32,217.22,7.64]
[1758649021793,3.1608637,217.32,217.17,7.64]
[1758649022294,3.1608637,217.32,217.19,4.1413]
[1758649022692,4.1393,217.3,217.19,4.1413]
[1758649022881,10.6008637,217.29,217.17,7.64]
[1758649023085,3.1608637,217.28,217.17,7.64]
[1758649023292,3.1608637,217.27,217.17,7.64]
[1758649023491,7.44,217.29,217.2,4.1411]
[1758649023693,3.14125815,217.28,217.2,4.1411]
[1758649023987,3.14125815,217.27,217.24,4.1404]
[1758649024189,45.06025358,217.26,217.07,64.4573]
[1758649024385,3.14025358,217.25,217.12,7.64]
[1758649024793,3.14025358,217.25,217.14,7.64]
[1758649025091,124.1473,217.31,217.14,7.64]
[1758649025394,4.2897667,217.3,217.15,64.4336]
[1758649025594,4.2897667,217.29,217.17,64.427]
[1758649025786,3.13890028,217.28,217.18,7.64]
[1758649026089,59.76,217.31,217.22,4.1408]
[1758649026293,3.13773497,217.3,217.22,4.1408]
[1758649026497,3.13773497,217.29,217.22,4.1408]
[1758649026690,4.1393,217.3,217.19,4.1413]
[1758649026890,3.13733084,217.29,217.19,4.1413]
[1758649027094,3.13733084,217.28,217.18,7.64]
[1758649027293,3.13687701,217.27,217.18,7.64]
[1758649027491,4.1397,217.28,217.18,11.7815]
[1758649027692,59.76,217.31,217.18,11.7815]
[1758649027997,4.1395,217.29,217.18,11.7815]
[1758649028188,3.13703856,217.28,217.18,11.7815]
[1758649028389,3.13703856,217.27,217.18,11.7815]
[1758649028589,124.1469,217.31,217.18,11.7815]
[1758649028791,4.2862534,217.3,217.18,11.7815]
[1758649028992,3.135396,217.29,217.2,4.141]
[1758649029190,3.135396,217.29,217.19,64.4218]
[1758649029390,7.44,217.31,217.2,7.64]
[1758649029597,3.13351808,217.3,217.2,7.64]
[1758649029798,7.44,217.31,217.2,7.64]
[1758649029998,3.13298261,217.3,217.22,4.1407]
[1758649030189,3.13266468,217.29,217.2,7.64]
[1758649030390,3.13230429,217.28,217.19,4.2139297]
[1758649030596,64.4013,217.26,217.15,7.64]
[1758649030798,7.44,217.24,217.11,7.64]
[1758649030993,3.1330595,217.23,217.11,7.64]
[1758649031191,7.44,217.24,217.11,7.64]
[1758649031501,4.28370042,217.23,217.11,7.64]
[1758649031805,7.17,217.21,217.11,7.64]
[1758649031995,3.13253392,217.2,217.11,7.64]
[1758649032195,3.13253392,217.19,217.11,7.64]
[1758649032398,4.1414,217.19,217.11,7.64]
[1758649033298,7.17,217.21,217.11,7.64]
[1758649033604,7.17,217.26,217.11,7.64]
[1758649033902,7.63530561,217.32,217.11,11.7827]
[1758649033903,68.68644092,217.25,217.11,11.7827]
[1758649034200,4.141,217.21,217.11,7.64]
[1758649035204,3.13020403,217.2,217.11,7.64]
[1758649035502,4.1413,217.2,217.11,7.64]
[1758649035904,11.3107,217.23,217.11,7.64]
[1758649036104,4.28139427,217.22,217.11,7.64]
[1758649036305,3.13014243,217.21,217.11,11.7828]
[1758649037401,4.1412,217.2,217.11,11.7828]
[1758649037604,3.12943527,217.19,217.11,7.64]
[1758649037805,4.1412,217.2,217.11,7.64]
[1758649038009,3.12875683,217.19,217.11,7.64]
[1758649038311,3.12875683,217.19,217.06,64.4596]
[1758649038312,7.17,217.2,217.06,7.64]
[1758649038509,3.1277909,217.19,217.06,7.64]
[1758649038704,3.1277909,217.18,217.06,7.64]
[1758649038902,4.1415,217.19,217.1,4.1431]
[1758649039201,3.12743709,217.18,217.1,4.1431]
[1758649039407,4.1415,217.19,217.1,4.1431]
[1758649039706,7.17,217.2,217.12,4.1425]
[1758649039910,7.17,217.2,217.11,7.64]
[1758649040210,3.12718501,217.19,217.11,7.64]
[1758649040408,7.17,217.2,217.11,7.64]
[1758649040609,3.12685285,217.19,217.11,7.64]
[1758649040908,7.17,217.2,217.11,7.64]
[1758649041110,3.12685285,217.19,217.11,7.64]
[1758649041408,7.17,217.2,217.11,7.64]
[1758649041804,11.3112,217.2,217.11,7.64]
[1758649042006,7.17,217.2,217.11,7.64]
[1758649042205,3.12439717,217.19,217.11,7.64]
[1758649042416,7.17,217.2,217.11,7.64]
[1758649042909,7.26472924,217.19,217.09,4.1432]
[1758649043111,7.17,217.2,217.07,64.4572]
[1758649043312,7.17,217.2,217.09,7.68]
[1758649043605,64.3991,217.27,217.14,4.1423]
[1758649043805,131.67240508,217.26,217.14,4.1423]
[1758649044005,4.27240508,217.25,217.14,4.1423]
[1758649044309,3.12115322,217.24,217.14,4.1423]
[1758649044608,7.52,217.22,217.13,7.68]
[1758649044810,3.12115322,217.21,217.13,7.68]
[1758649045007,7.52,217.22,217.13,7.68]
[1758649045206,4.1414,217.2,217.13,7.68]
[1758649045407,7.52,217.22,217.1,4.143]
[1758649045609,3.12008469,217.21,217.1,4.143]
[1758649045910,4.1415,217.19,217.11,4.1427]
[1758649046609,7.52,217.22,217.11,7.68]
[1758649047702,7.52,217.22,217.12,4.1426]
[1758649047909,7.52,217.22,217.11,7.68]
[1758649048513,7.52,217.22,217.14,4.1422]
[1758649048712,3.11824769,217.21,217.14,4.1422]
[1758649049012,7.52,217.22,217.14,4.1422]
[1758649049316,3.11951581,217.21,217.14,4.1422]
[1758649049511,7.52,217.13,216.99,7.68]
[1758649049710,3.1174047,217.12,216.99,7.68]
[1758649049911,127.38,217.13,216.99,7.68]
[1758649050113,7.52,217.13,217.01,4.1448]
[1758649050612,7.52,217.13,217.02,64.4717]
[1758649050816,10.63681774,217.12,216.98,7.68]
[1758649051016,7.52,217.12,216.98,7.68]
[1758649051308,7.52,217.12,217.0,4.1449]
[1758649051514,7.52,217.12,216.98,7.68]
[1758649051711,7.52,217.12,216.97,64.4861]
[1758649051712,7.52,217.12,217.01,72.1533]
[1758649051912,55.44,217.18,217.01,72.1533]
[1758649051913,7.52,217.17,217.04,72.1452]
[1758649052108,7.52,217.17,217.05,7.68]
[1758649052316,45.46,217.22,217.07,7.68]
[1758649052515,3.11505908,217.21,217.08,64.4535]
[1758649052716,7.52,217.24,217.12,7.68]
[1758649053122,7.52,217.24,217.15,4.142]
[1758649053827,11.6606,217.24,217.13,4.1425]
[1758649054121,7.52,217.24,217.12,7.68]
[1758649055223,4.1407,217.23,217.12,7.68]
[1758649055720,7.52,217.24,217.13,64.4394]
[1758649055927,4.1401,217.26,217.13,64.4394]
[1758649056127,7.52,217.28,217.15,7.68]
[1758649056326,3.08561124,217.27,217.15,7.68]
[1758649056627,7.52,217.28,217.15,7.68]
[1758649056823,3.08187737,217.27,217.15,7.68]
[1758649057125,64.4074,217.24,217.07,7.68]
[1758649057430,10.60187737,217.23,217.07,7.68]
[1758649057627,7.52,217.23,217.09,64.4511]
[1758649057833,7.52,217.23,217.1,7.68]
[1758649058319,67.48799147,217.22,217.1,7.68]
[1758649058633,7.52,217.18,217.01,7.68]
[1758649058826,4.1425,217.14,217.05,4.1439]
[1758649059228,4.1425,217.14,217.02,64.4718]
[1758649060231,7.52,217.13,217.03,4.1443]
[1758649060530,11.6627,217.13,217.03,4.1443]
[1758649060935,7.52,217.13,217.01,7.68]
[1758649061230,4.1431,217.1,217.0,4.1449]
[1758649061829,4.1435,217.08,216.96,7.68]
[1758649062332,4.1428,217.12,216.98,64.4841]
[1758649062528,7.52,217.13,217.0,64.4779]
[1758649063034,11.6627,217.13,217.04,4.144]
[1758649063235,3.08748843,217.12,217.04,4.144]
[1758649063433,7.52,217.13,217.01,64.475]
[1758649063633,7.52,217.13,217.06,4.1437]
[1758649064034,7.52,217.13,216.99,7.68]
[1758649064330,3.08846057,217.12,217.05,4.144]
[1758649064536,7.52,217.13,217.05,4.144]
[1758649065734,7.52,217.13,217.04,7.68]
[1758649066041,3.08860349,217.12,216.96,7.68]
[1758649066238,3.08860349,217.11,216.96,7.68]
[1758649066434,10.60860349,217.1,216.96,7.68]
[1758649066739,3.08860349,217.09,216.96,7.68]
[1758649067035,3.08860349,217.08,216.97,4.1455]
[1758649067232,7.52,217.1,216.97,4.1455]
[1758649067433,3.08549697,217.09,216.97,4.1455]
[1758649067634,3.08549697,217.08,216.99,4.1451]
[1758649067833,7.52,217.1,216.96,7.68]
[1758649068025,3.08407998,217.09,217.02,4.1444]
[1758649068226,7.52,217.1,217.0,7.68]
[1758649068833,4.1434,217.09,217.0,7.68]
[1758649069033,7.52,217.1,217.0,7.68]
[1758649069436,4.1433,217.09,217.01,4.1446]
[1758649069941,11.6632,217.1,217.01,4.1446]
[1758649070240,7.52,217.1,217.01,4.1446]
[1758649070834,7.52,217.1,217.02,4.1444]
[1758649071040,48.74,217.14,217.01,64.4746]
[1758649071041,4.1425,217.14,217.01,64.4746]
[1758649071234,3.08211082,217.13,217.02,7.68]
[1758649071434,4.1425,217.14,217.02,7.68]
[1758649071635,3.08263508,217.13,217.02,7.68]
[1758649071933,4.1425,217.14,217.02,7.68]
[1758649072133,7.22426484,217.13,217.02,7.68]
[1758649072331,52.04,217.17,217.02,7.68]
[1758649072332,10.60156484,217.12,217.02,7.68]
[1758649072533,3.08156484,217.11,217.02,7.68]
[1758649072733,7.52,217.12,217.02,7.68]
[1758649072935,3.08152627,217.11,217.02,7.68]
[1758649073231,7.52,217.12,217.02,7.68]
[1758649073435,3.08241813,217.11,217.02,7.68]
[1758649073635,7.52,217.12,217.02,7.68]
[1758649073835,7.72,217.17,217.03,64.4687]
[1758649074035,3.08290999,217.16,217.05,64.4626]
[1758649074230,3.08290999,217.15,217.06,7.5]
[1758649074440,7.72,217.17,217.06,7.5]
[1758649074737,7.72,217.15,216.94,7.5]
[1758649074937,7.72,217.04,216.86,7.5]
[1758649075239,4.1452,216.99,216.87,64.5167]
[1758649075546,7.72,217.02,216.89,7.5]
[1758649075736,61.72,217.08,216.89,7.5]
[1758649075737,4.1444,217.04,216.92,7.5]
[1758649075941,7.72,217.07,216.93,64.4987]
[1758649076137,4.24191012,217.06,216.93,64.4987]
[1758649076337,7.23406766,217.05,216.92,7.5]
[1758649076539,4.1442,217.05,216.92,7.5]
[1758649077042,4.1442,217.05,216.98,4.1453]
[1758649077344,7.72,217.07,216.92,7.5]
[1758649077538,4.24030243,217.06,216.92,7.5]
[1758649077740,3.08819679,217.05,216.98,4.1454]
[1758649077935,7.72,217.07,216.98,4.1454]
[1758649078135,4.1442,217.04,216.95,4.1458]
[1758649078339,7.72,217.07,216.95,4.1458]
[1758649078647,4.23835576,217.06,216.95,4.1458]
[1758649078943,7.23042563,217.05,216.95,4.1458]
[1758649079138,4.1442,217.05,216.95,4.1458]
[1758649080142,4.1442,217.05,216.97,4.1455]
[1758649080942,6.6126443,217.15,216.96,64.4897]
[1758649081142,7.72,217.12,217.01,7.5]
[1758649081341,348.28,217.14,217.02,64.4714]
[1758649081342,3.08390224,217.11,217.02,64.4714]
[1758649081647,348.28,217.14,217.06,7.5]
[1758649081843,7.72,217.17,217.06,7.5]
[1758649082050,4.141,217.22,217.12,4.1425]
[1758649082240,4.23908508,217.21,217.12,4.1425]
[1758649082440,7.72,217.23,217.12,64.4425]
[1758649082635,7.72,217.23,217.11,64.4455]
[1758649082636,7.72,217.23,217.13,7.5]
[1758649083850,7.72,217.23,217.13,11.6425]
[1758649084043,7.72,217.23,217.13,7.5]
[1758649084844,3.11190321,217.22,217.06,118.5]
[1758649085046,3.11190321,217.21,217.08,7.5]
[1758649085348,3.11190321,217.2,217.08,7.5]
[1758649085543,8.87146152,217.19,217.08,7.5]
[1758649085743,3.11190321,217.18,217.08,7.5]
[1758649086051,3.11190321,217.17,217.08,7.5]
[1758649086247,7.72,217.19,217.08,7.5]
[1758649086548,3.11279518,217.18,217.08,7.5]
[1758649086748,7.72,217.24,217.08,71.9544]
[1758649086950,4.26524533,217.23,217.08,71.9544]
[1758649087145,4.26524533,217.22,217.08,71.9544]
[1758649087354,3.11391393,217.21,217.12,4.1427]
[1758649087550,3.11391393,217.21,217.11,7.5]
[1758649087754,7.72,217.24,217.11,7.5]
[1758649087948,4.26656964,217.23,217.11,11.6427]
[1758649088253,4.26659465,217.22,217.11,11.6427]
[1758649088454,3.11527916,217.21,217.11,11.6427]
[1758649088754,72.1278,217.24,217.11,7.5]
[1758649088942,4.26793937,217.23,217.11,7.5]
[1758649089148,4.26793937,217.22,217.11,7.5]
[1758649089344,3.11660837,217.21,217.11,7.5]
[1758649089544,7.72,217.24,217.11,7.5]
[1758649089750,4.2696974,217.23,217.11,7.5]
[1758649090055,3.11838346,217.22,217.11,7.5]
[1758649090354,7.72,217.24,217.11,7.5]
[1758649090652,3.11685274,217.23,217.11,7.5]
[1758649090853,3.11685274,217.22,217.14,4.1422]
[1758649091048,3.11685274,217.22,217.13,7.5]
[1758649091250,7.72,217.24,217.13,7.5]
[1758649091454,3.11652625,217.23,217.13,7.5]
[1758649091752,7.15,217.29,217.13,7.5]
[1758649092055,3.11700931,217.28,217.18,64.4248]
[1758649092249,7.15,217.29,217.19,7.36]
[1758649092451,3.11446796,217.28,217.14,4.22224894]
[1758649092657,7.15,217.26,217.13,7.36]
[1758649092852,4.141,217.21,217.13,7.36]
[1758649093450,64.4049,217.25,217.08,4.1433]
[1758649093451,7.15,217.19,217.08,4.1433]
[1758649093856,3.11392939,217.18,217.08,4.1433]
[1758649094156,7.15,217.19,217.08,4.1433]
[1758649094351,3.11111938,217.18,217.08,4.1433]
[1758649094550,3.11111938,217.17,217.09,7.36]
[1758649094855,7.15,217.24,217.09,7.36]
[1758649095047,8.40239106,217.23,217.14,4.1422]
[1758649095251,3.11046064,217.22,217.14,64.4358]
[1758649095451,120.48,217.27,217.14,64.4358]
[1758649095654,3.1087672,217.26,217.19,4.1414]
[1758649095857,7.15,217.29,217.18,64.4247]
[1758649096049,3.109979,217.28,217.18,64.4247]
[1758649096254,3.109979,217.27,217.21,4.1408]
[1758649096450,3.109979,217.26,217.22,7.36]
[1758649096652,76.61540374,217.35,217.22,7.36]
[1758649096861,64.3846,217.32,217.22,7.36]
[1758649097154,64.3925,217.29,217.16,7.36]
[1758649097356,4.1407,217.23,217.1,7.36]
[1758649097549,3.10882209,217.22,217.1,7.36]
[1758649097750,3.10882209,217.21,217.1,7.36]
[1758649097953,4.1407,217.23,217.1,7.36]
[1758649098156,3.1069723,217.22,217.1,7.36]
[1758649098356,7.2479723,217.21,217.13,4.1425]
[1758649098558,4.141,217.21,217.13,4.1425]
[1758649098961,4.1406,217.23,217.15,4.1421]
[1758649099159,7.15,217.24,217.14,7.36]
[1758649099160,3.10805808,217.22,217.14,7.36]
[1758649099363,4.1402,217.26,217.14,7.36]
[1758649099557,3.10836961,217.25,217.14,7.36]
[1758649099863,4.1402,217.26,217.14,7.36]
[1758649100061,3.10856632,217.25,217.14,7.36]
[1758649100262,11.2896,217.29,217.17,7.36]
[1758649100461,3.10834502,217.28,217.17,7.36]
[1758649100660,11.2896,217.29,217.17,7.36]
[1758649100661,3.10834502,217.27,217.17,7.36]
[1758649100861,3.10834502,217.26,217.17,7.36]
[1758649101061,11.2896,217.29,217.17,7.36]
[1758649101271,3.11145869,217.28,217.17,7.36]
[1758649101458,3.11145869,217.27,217.17,7.36]
[1758649101660,3.11145869,217.26,217.22,4.1407]
[1758649101964,11.2896,217.29,217.22,4.1407]
[1758649102167,11.2896,217.29,217.17,7.36]
[1758649102168,3.111472,217.28,217.17,7.36]
[1758649102359,3.11063926,217.27,217.17,7.36]
[1758649102669,3.11063926,217.26,217.17,7.36]
[1758649102869,10.26212014,217.25,217.12,7.36]
[1758649103069,7.15,217.25,217.12,7.36]
[1758649103763,7.15,217.25,217.16,4.1419]
[1758649104266,7.15,217.25,217.15,64.4334]
[1758649104666,7.18,217.31,217.17,7.54]
[1758649104968,71.5731,217.29,217.12,7.54]
[1758649105165,7.18,217.27,217.12,7.54]
[1758649105373,4.1406,217.24,217.16,4.1418]
[1758649106267,7.18,217.27,217.12,7.54]
[1758649106574,3.11097693,217.26,217.12,7.54]
[1758649106767,3.11084883,217.25,217.16,4.1418]
[1758649106965,184.6134,217.29,217.12,7.54]
[1758649106966,64.4012,217.26,217.12,7.54]